lending/lending_fUSD_20250424
["ID","MTS","AMOUNT","RATE_DAILY","PERIOD"]
[358816234,1745461838802,-10775.07564837,0.00019999,2]
[358816236,1745461838812,-1149.0,0.0002,2]
[358816238,1745461838823,-940230.1274591,0.0002,2]
[358816241,1745461838832,-1682167.06378412,0.0002,2]
[358816243,1745461838847,-1746724.25443152,0.0002,2]
[358816245,1745461838856,-112206.6443636,0.0002,2]
[358816247,1745461838866,-250.0,0.0002,2]
[358816249,1745461838876,-250.0,0.0002,2]
[358816251,1745461838886,-250.0,0.0002,2]
[358816253,1745461838896,-250.0,0.0002,2]
[358816255,1745461838906,-250.0,0.0002,2]
[358816257,1745461838916,-250.0,0.0002,2]
[358816259,1745461838927,-250.0,0.0002,2]
[358816261,1745461838940,-250.0,0.0002,2]
[358816263,1745461838950,-250.0,0.0002,2]
[358816265,1745461838961,-250.0,0.0002,2]
[358816268,1745461838973,-304.9,0.0002,2]
[358816270,1745461838983,-250.0,0.0002,2]
[358816272,1745461838994,-238.0,0.0002,2]
[358816274,1745461839003,-163.785,0.0002,2]
[358816276,1745461839013,-150.402,0.0002,2]
[358816278,1745461839023,-154.247,0.0002,2]
[358816280,1745461839033,-150.479,0.0002,2]
[358816282,1745461839043,-150.0,0.0002,2]
[358816284,1745461839054,-152.349,0.0002,2]
[358816286,1745461839064,-241.931,0.0002,2]
[358816288,1745461839074,-253.434,0.0002,2]
[358816290,1745461839084,-182.381,0.0002,2]
[358816292,1745461839093,-156.74,0.0002,2]
[358816294,1745461839103,-172.624,0.0002,2]
[358816296,1745461839112,-258.736,0.0002,2]
[358816298,1745461839122,-2658.194397,0.0002,2]
[358816300,1745461839132,-50000.0,0.0002,2]
[358816302,1745461839143,-3166.19367,0.0002,2]
[358816304,1745461839152,-1000.0,0.0002,2]
[358816306,1745461839162,-1000.0,0.0002,2]
[358816308,1745461839173,-1000.0,0.0002,2]
[358816310,1745461839183,-1000.0,0.0002,2]
[358816312,1745461839194,-1000.0,0.0002,2]
[358816314,1745461839210,-1000.0,0.0002,2]
[358816316,1745461839220,-1000.0,0.0002,2]
[358816319,1745461839229,-1000.0,0.0002,2]
[358816321,1745461839239,-1000.0,0.0002,2]
[358816323,1745461839250,-1000.0,0.0002,2]
[358816325,1745461839260,-1000.0,0.0002,2]
[358816327,1745461839270,-821.0,0.0002,2]
[358816329,1745461839280,-578.0,0.0002,2]
[358816331,1745461839290,-932.101,0.0002,2]
[358816333,1745461839301,-548.0,0.0002,2]
[358816335,1745461839311,-1285.0,0.0002,2]
[358816337,1745461839322,-1455.343,0.0002,2]
[358816339,1745461839333,-466.445426,0.0002,2]
[358816341,1745461839344,-556997.34071188,0.0002,2]
[358816344,1745461839357,-364.04259866,0.0002,2]
[358816346,1745461839373,-5892.43321498,0.0002,2]
[358816348,1745461839385,-4108.3547939,0.0002,2]
[358816350,1745461839397,-5747.74016914,0.0002,2]
[358816353,1745461839411,-403.89728627,0.0002,2]
[358816354,1745461839423,-608.0061,0.0002,2]
[358816355,1745461839435,-2281.87364935,0.0002,2]
[358816356,1745461839470,-243504.9504333,0.0002,2]
[358816357,1745461839481,-1296.4560435,0.0002,2]
[358816358,1745461839512,-5786.30309549,0.0002,2]
[358816359,1745461839523,-123449.5246152,0.0002,2]
[358816360,1745461839540,-775.44461026,0.0002,2]
[358816361,1745461839552,-10006.85137768,0.0002,2]
[358816474,1745461840710,-1091.00529632,0.00019999,2]
[358816476,1745461840720,-5042822.96183238,0.0002,2]
[358816507,1745461841012,-0.01246674,0.0002,2]
[358817119,1745461847525,-937.50987728,0.00019897,2]
[358817125,1745461847575,-1000.0,0.00019897,2]
[358817291,1745461854397,158.309684,0.00037808,60]
[358817292,1745461859921,158.309684,0.00019999,4]
[358817293,1745461860144,1889.312,0.000378,60]
[358817294,1745461867888,156.364377,0.00037808,60]
[358817296,1745462033527,655.14,0.00017296,2]
[358817297,1745462156812,-167.96899125,0.00019027,2]
[358817298,1745462177985,-216.94101419,0.00019027,2]
[358817299,1745462242134,-325.99803575,0.00018978,2]
[358817300,1745462282096,-150.0,0.00018978,2]
[358817301,1745462304749,791.72,0.00018914,2]
[358817302,1745462305139,-193.22298391,0.00018978,2]
[358817303,1745462325827,-156.16,0.00018977,2]
[358817304,1745462405646,-165.55248592,0.00018978,2]
[358817305,1745462479492,1000.0,0.00018897,2]
[358817306,1745462494563,-220.89631613,0.00018977,2]
[358817307,1745462579911,2078.155633,0.00018929,2]
[358817308,1745462625478,250.0,0.00017,2]
[358817309,1745462626327,-150.0,0.00019025,2]
[358817310,1745462626350,-100.0,0.00019073,2]
[358817311,1745462710467,-230.35508119,0.00019,2]
[358817312,1745462764037,-69.64491881,0.00019,2]
[358817313,1745462764064,-82.35508119,0.00019036,2]
[358817314,1745462812899,4433.65,0.00035,60]
[358817315,1745462845006,203.89,0.00018855,7]
[358817316,1745462874063,181.75,0.00018853,2]
[358817317,1745462874708,-167.64491881,0.00019036,2]
[358817318,1745462874732,-1.01508119,0.00019072,2]
[358817319,1745462904672,500.0,0.00018852,2]
[358817320,1745462999321,2067.98068945,0.00037808,60]
[358817326,1745463032009,-595.39054192,0.00019073,2]
[358817327,1745463032020,-604.60945808,0.00019073,2]
[358817328,1745463032030,-300.0,0.00019073,2]
[358817329,1745463032039,-300.0,0.00019073,2]
[358817330,1745463032050,-850.0,0.00019074,2]
[358817331,1745463032059,-500.0,0.00019074,2]
[358817332,1745463032069,-500.0,0.00019074,2]
[358817333,1745463032078,-500.0,0.00019074,2]
[358817334,1745463032088,-500.0,0.00019074,2]
[358817335,1745463032097,-500.0,0.00019074,2]
[358817336,1745463032106,-318.42578037,0.00019074,2]
[358817337,1745463032118,-90.19944221,0.00019074,2]
[358817338,1745463032127,-500.0,0.00019074,2]
[358817339,1745463032137,-500.0,0.00019074,2]
[358817340,1745463032146,-309.73246136,0.00019074,2]
[358817341,1745463032178,-190.26753864,0.00019074,2]
[358817342,1745463032187,-500.0,0.00019074,2]
[358817343,1745463032197,-3295.13750632,0.00019075,2]
[358817344,1745463032209,-6375.21124569,0.00019075,2]
[358817345,1745463032220,-298.695,0.00019075,2]
[358817346,1745463032232,-1339.95998566,0.00019075,2]
[358817347,1745463032243,-588.1693003,0.00019075,2]
[358817348,1745463032255,-7538.41011593,0.00019075,2]
[358817349,1745463032304,-4450.00000001,0.00019075,2]
[358817350,1745463032352,-14.41684609,0.00019075,2]
[358817351,1745463032363,-358.09315489,0.00019123,2]
[358817352,1745463032376,-698.68684511,0.00019123,2]
[358817353,1745463032386,-253.36,0.00019302,2]
[358817354,1745463032396,-166.7,0.00019473,2]
[358817355,1745463032405,-150.0,0.000196,2]
[358817356,1745463032415,-150.0,0.000196,2]
[358817357,1745463032424,-151.38,0.000196,2]
[358817358,1745463032433,-150.65,0.000196,2]
[358817360,1745463032443,-150.0,0.000196,2]
[358817362,1745463032452,-969.69634791,0.000196,2]
[358817374,1745463032811,-30.30365209,0.000196,2]
[358817376,1745463032846,-191.39,0.000197,2]
[358817377,1745463032855,-150.0,0.000197,2]
[358817379,1745463032865,-166.34,0.000197,2]
[358817381,1745463032874,-150.0,0.000197,2]
[358817383,1745463032884,-150.0,0.000197,2]
[358817385,1745463032893,-74.18874955,0.000197,2]
[358817387,1745463032904,-75.81125045,0.000197,2]
[358817389,1745463032914,-150.0,0.000197,2]
[358817391,1745463032923,-219.68064168,0.000197,2]
[358817393,1745463032935,-204.36935832,0.000197,2]
[358817395,1745463032944,-167.48909024,0.000197,2]
[358817397,1745463032955,-10092.18185419,0.000197,2]
[358817399,1745463032966,-1190.93905557,0.000197,2]
[358817402,1745463032980,-150.0,0.00019739,2]
[358817404,1745463032989,-300.0,0.00019741,2]
[358817406,1745463032998,-250.0,0.00019766,2]
[358817408,1745463033008,-1056.5250148,0.00019786,2]
[358817410,1745463033018,-150.0,0.00019793,2]
[358817412,1745463033028,-647.67,0.00019799,2]
[358817414,1745463033038,-198.8317263,0.00019799,2]
[358817416,1745463033047,-156.57,0.000198,2]
[358817417,1745463033057,-165.02,0.000198,2]
[358817419,1745463033067,-157.72,0.000198,2]
[358817421,1745463033076,-150.0,0.000198,2]
[358817423,1745463033085,-150.0,0.000198,2]
[358817425,1745463033095,-187.88482151,0.000198,2]
[358817431,1745463033143,-329.0819561,0.000198,2]
[358817434,1745463033155,-483.03322239,0.000198,2]
[358817436,1745463033165,-1000.0,0.000198,2]
[358817438,1745463033174,-782.584,0.000198,2]
[358817440,1745463033184,-150.0,0.00019828,2]
[358817442,1745463033193,-150.0,0.00019842,2]
[358817444,1745463033202,-150.0,0.00019852,2]
[358817446,1745463033212,-351.08,0.00019855,2]
[358817447,1745463033222,-351.08,0.00019855,2]
[358817448,1745463033233,-351.08,0.00019855,2]
[358817449,1745463033243,-196.14461275,0.00019855,2]
[358817450,1745463033297,-154.93538725,0.00019855,2]
[358817451,1745463033309,-102.39037125,0.00019855,2]
[358817452,1745463033320,-137.01962875,0.00019855,2]
[358817453,1745463033330,-212.77569529,0.00019863,2]
[358817454,1745463033340,-154.62467596,0.00019863,2]
[358817455,1745463033352,-585.43588817,0.00019863,2]
[358817456,1745463033362,-500.0,0.00019873,2]
[358817457,1745463033372,-606.68601742,0.00019873,2]
[358817458,1745463033382,-515.11545751,0.00019873,2]
[358817459,1745463033393,-500.0,0.00019873,2]
[358817460,1745463033403,-509.04139799,0.00019873,2]
[358817461,1745463033413,-207.4,0.00019888,2]
[358817462,1745463033423,-180.64,0.0001989,2]
[358817463,1745463033432,-180.64,0.0001989,2]
[358817464,1745463033442,-180.64,0.0001989,2]
[358817465,1745463033451,-169.98407906,0.0001989,2]
[358817466,1745463035104,622.38,0.00016939,2]
[358817470,1745463037973,-622.38,0.00019203,2]
[358817471,1745463037983,-10.65592094,0.0001989,2]
[358817472,1745463037993,-3296.92444248,0.00019898,2]
[358817473,1745463038002,-1000.0,0.00019899,2]
[358817474,1745463038012,-1000.0,0.00019899,2]
[358817475,1745463038022,-1000.0,0.00019899,2]
[358817476,1745463038032,-1000.0,0.00019899,2]
[358817477,1745463038041,-1000.0,0.00019899,2]
[358817478,1745463038050,-1000.0,0.00019899,2]
[358817479,1745463038062,-1000.0,0.00019899,2]
[358817480,1745463038071,-1000.0,0.00019899,2]
[358817481,1745463038080,-1000.0,0.00019899,2]
[358817482,1745463038089,-1000.0,0.00019899,2]
[358817483,1745463038099,-1000.0,0.00019899,2]
[358817484,1745463038108,-1000.0,0.00019899,2]
[358817485,1745463038118,-1000.0,0.00019899,2]
[358817486,1745463038127,-1000.0,0.00019899,2]
[358817487,1745463038137,-1000.0,0.00019899,2]
[358817488,1745463038146,-1000.0,0.00019899,2]
[358817489,1745463038157,-1000.0,0.00019899,2]
[358817490,1745463038166,-1000.0,0.00019899,2]
[358817491,1745463038175,-1000.0,0.00019899,2]
[358817492,1745463038185,-1000.0,0.00019899,2]
[358817493,1745463038195,-1000.0,0.00019899,2]
[358817494,1745463038204,-1000.0,0.00019899,2]
[358817495,1745463038214,-1000.0,0.00019899,2]
[358817496,1745463038223,-1000.0,0.00019899,2]
[358817497,1745463038233,-1000.0,0.00019899,2]
[358817498,1745463038242,-1000.0,0.00019899,2]
[358817499,1745463038251,-1000.0,0.00019899,2]
[358817500,1745463038261,-1000.0,0.00019899,2]
[358817501,1745463038271,-1000.0,0.00019899,2]
[358817502,1745463038281,-1000.0,0.00019899,2]
[358817503,1745463038291,-1000.0,0.00019899,2]
[358817504,1745463038300,-1000.0,0.00019899,2]
[358817505,1745463038313,-1000.0,0.00019899,2]
[358817506,1745463038322,-1000.0,0.00019899,2]
[358817507,1745463038332,-1000.0,0.00019899,2]
[358817508,1745463038341,-6590.12205859,0.00019899,2]
[358817510,1745463038351,-500.0,0.00019899,2]
[358817512,1745463038360,-500.0,0.00019899,2]
[358817513,1745463038369,-187.59663502,0.00019899,2]
[358817515,1745463038379,-218.76685483,0.00019899,2]
[358817517,1745463038389,-500.0,0.00019899,2]
[358817519,1745463038398,-500.0,0.00019899,2]
[358817521,1745463038407,-500.0,0.00019899,2]
[358817523,1745463038417,-500.0,0.00019899,2]
[358817525,1745463038426,-500.0,0.00019899,2]
[358817527,1745463038435,-500.0,0.00019899,2]
[358817529,1745463038445,-500.0,0.00019899,2]
[358817531,1745463038454,-500.0,0.00019899,2]
[358817533,1745463038463,-640.9011927,0.00019899,2]
[358817535,1745463038472,-640.9011927,0.00019899,2]
[358817536,1745463038482,-640.9011927,0.00019899,2]
[358817538,1745463038492,-640.9011927,0.00019899,2]
[358817539,1745463038501,-640.9011927,0.00019899,2]
[358817540,1745463038510,-640.9011927,0.00019899,2]
[358817541,1745463038519,-640.9011927,0.00019899,2]
[358817542,1745463038528,-640.9011927,0.00019899,2]
[358817543,1745463038538,-640.9011927,0.00019899,2]
[358817544,1745463038547,-640.9011927,0.00019899,2]
[358817545,1745463038559,-640.9011927,0.00019899,2]
[358817546,1745463038568,-640.9011927,0.00019899,2]
[358817547,1745463038578,-640.9011927,0.00019899,2]
[358817548,1745463038587,-640.9011927,0.00019899,2]
[358817549,1745463038597,-640.9011927,0.00019899,2]
[358817550,1745463038606,-640.9011927,0.00019899,2]
[358817551,1745463038617,-761.96030685,0.00019899,2]
[358817552,1745463038626,-761.96030685,0.00019899,2]
[358817553,1745463038635,-6590.12205859,0.00019899,2]
[358817554,1745463038645,-6590.12205859,0.00019899,2]
[358817555,1745463038654,-6590.12205859,0.00019899,2]
[358817556,1745463038663,-6590.12205859,0.00019899,2]
[358817557,1745463038672,-6590.12205859,0.000199,2]
[358817558,1745463038682,-6590.12205859,0.000199,2]
[358817559,1745463038691,-6590.12205859,0.000199,2]
[358817560,1745463038700,-6590.12205859,0.000199,2]
[358817561,1745463038710,-26307.60182252,0.000199,2]
[358817562,1745463038739,-958.43608478,0.000199,2]
[358817563,1745463038751,-3660.76925576,0.000199,2]
[358817564,1745463038838,-106485.33023672,0.000199,2]
[358817565,1745463038848,-1000.0,0.000199,2]
[358817566,1745463038857,-287.63787259,0.000199,2]
[358817567,1745463038867,-4749.48658081,0.000199,2]
[358817568,1745463038877,-1628.09709762,0.000199,2]
[358817569,1745463038886,-228.34903713,0.000199,2]
[358817570,1745463038895,-150.0,0.00019901,2]
[358817571,1745463038903,-243.11802442,0.00019902,2]
[358817572,1745463038913,-150.0,0.00019918,2]
[358817573,1745463038922,-150.0,0.00019927,2]
[358817574,1745463038931,-645.22053293,0.00019973,2]
[358817575,1745463038940,-325.65778398,0.00019973,2]
[358817576,1745463038949,-500.0,0.00019973,2]
[358817577,1745463038958,-517.6822308,0.00019973,2]
[358817578,1745463038967,-500.0,0.00019973,2]
[358817579,1745463038977,-500.0,0.00019973,2]
[358817580,1745463038987,-501.42407945,0.00019973,2]
[358817581,1745463038997,-500.0,0.00019973,2]
[358817582,1745463039006,-500.0,0.00019973,2]
[358817583,1745463039015,-510.75401508,0.00019973,2]
[358817584,1745463039025,-500.0,0.00019973,2]
[358817585,1745463039035,-500.0,0.00019973,2]
[358817586,1745463039045,-668.65185757,0.00019974,2]
[358817587,1745463039059,-151.0,0.00019974,2]
[358817588,1745463039069,-180.64,0.00019976,2]
[358817589,1745463039078,-180.64,0.00019976,2]
[358817590,1745463039087,-180.64,0.00019976,2]
[358817591,1745463039097,-180.64,0.00019976,2]
[358817592,1745463039106,-4365.4092523,0.00019986,2]
[358817593,1745463039116,-70818.8687938,0.00019986,2]
[358817594,1745463039126,-371.4185326,0.00019986,2]
[358817595,1745463039135,-4211.8144894,0.00019986,2]
[358817596,1745463039145,-1897.9685345,0.00019986,2]
[358817597,1745463039154,-150.0,0.00019988,2]
[358817598,1745463039163,-150.0,0.00019988,2]
[358817599,1745463039174,-180.64,0.00019989,2]
[358817600,1745463039185,-180.64,0.00019989,2]
[358817601,1745463039194,-309.17869918,0.0001999,2]
[358817602,1745463039203,-309.17869918,0.0001999,2]
[358817603,1745463039212,-309.17869918,0.0001999,2]
[358817604,1745463039222,-300.0,0.00019999,2]
[358817605,1745463039231,-300.0,0.00019999,2]
[358817606,1745463039241,-300.0,0.00019999,2]
[358817607,1745463039251,-55667.37004628,0.00019999,2]
[358817608,1745463039260,-1644.09672093,0.00019999,2]
[358817609,1745463039270,-1363.75662039,0.00019999,2]
[358817610,1745463039280,-1150.0,0.00019999,2]
[358817611,1745463039289,-940230.1274591,0.0002,2]
[358817612,1745463039303,-255.63013331,0.0002,2]
[358817613,1745463039318,-1483578.9899401,0.0002,2]
[358817614,1745463039331,-2494318.525,0.0002,2]
[358817615,1745463039360,-603.465158,0.0002,2]
[358817616,1745463039372,-899.75580869,0.0002,2]
[358817618,1745463040663,-0.01264077,0.00019999,2]
[358817619,1745463040759,-550.0,0.00019999,2]
[358817620,1745463040773,-540.99265555,0.00019999,2]
[358817621,1745463041230,-5043372.97447315,0.0002,2]
[358817631,1745463043414,-432.06190101,0.000199,2]
[358817632,1745463043432,-6158.06015758,0.000199,2]
[358817633,1745463043442,-1091.00529632,0.00019999,2]
[358817634,1745463043452,-521512.20491084,0.0002,2]
[358817646,1745463046005,-1091.00529632,0.00019999,2]
[358817649,1745463046016,-1489.82501818,0.0002,2]
[358817651,1745463046029,-421.7301546,0.0002,2]
[358817653,1745463046041,-933.95508259,0.0002,2]
[358817657,1745463046298,-1091.00529632,0.00019999,2]
[358817658,1745463046308,-1042.0,0.00019999,2]
[358817659,1745463046320,-14225.807943,0.0002,2]
[358817660,1745463046337,-702.9439872,0.0002,2]
[358817662,1745463107041,-150.0,0.00019676,2]
[358817663,1745463277688,150.0,0.0003,90]
[358817664,1745463332717,187.78,0.00015246,2]
[358817665,1745463436282,-282.59257553,0.00018998,2]
[358817666,1745463512979,-234.79690374,0.00018997,2]
[358817667,1745463541933,-171.20058739,0.00018997,2]
[358817668,1745463602705,-397.42746426,0.00018997,2]
[358817669,1745463617960,198.6,0.00018944,2]
[358817670,1745463625378,2470.557146,0.00037808,60]
[358817671,1745463646676,-218.31766001,0.00018997,2]
[358817672,1745463649524,1000.0,0.00018927,2]
[358817673,1745463662387,-203.05,0.00018997,2]
[358817674,1745463724163,-300.0,0.00018997,2]
[358817675,1745463842142,-81.20487573,0.00018997,2]
[358817676,1745463842165,-218.79512427,0.00018997,2]
[358817677,1745463902549,-275.03627159,0.00018997,2]
[358817678,1745463983232,-161.33106,0.00018997,2]
[358817679,1745464015011,-390.561552,0.00018997,2]
[358817680,1745464029722,-318.2021,0.00018997,2]
[358817681,1745464048682,-184.0073131,0.00018997,2]
[358817682,1745464080794,-145.8979749,0.00018997,2]
[358817683,1745464080816,-7.9595451,0.00018997,2]
[358817684,1745464093890,-149.0404549,0.00018997,2]
[358817685,1745464093913,-86.8412451,0.00018997,2]
[358817686,1745464111739,-213.1587549,0.00018997,2]
[358817687,1745464111762,-63.6078451,0.00018997,2]
[358817688,1745464133328,-186.3921549,0.00018997,2]
[358817689,1745464133358,-227.5703451,0.00018997,2]
[358817690,1745464142454,-188.25850978,0.00018997,2]
[358817691,1745464154395,-111.74149022,0.00018997,2]
[358817692,1745464154423,-83.03555367,0.00018997,2]
[358817697,1745464202858,-170.19539122,0.00018997,2]
[358817698,1745464218879,315.6,0.00037808,60]
[358817772,1745464238239,-1029.80460878,0.00018997,2]
[358817773,1745464238251,-11962.87588028,0.00018998,2]
[358817774,1745464238319,-1743.80692896,0.00018998,2]
[358817775,1745464238335,-9910.72461523,0.00018998,2]
[358817776,1745464238346,-190.41123278,0.00019153,2]
[358817777,1745464238355,-250.0,0.00019253,2]
[358817778,1745464238366,-253.36,0.00019304,2]
[358817779,1745464238375,-166.66,0.00019554,2]
[358817780,1745464238385,-2.0,0.00019676,2]
[358817781,1745464238395,-450.18,0.000197,2]
[358817782,1745464238405,-450.18,0.000197,2]
[358817783,1745464238415,-464.41,0.000197,2]
[358817784,1745464238424,-450.18,0.000197,2]
[358817785,1745464238434,-450.18,0.000197,2]
[358817786,1745464238444,-900.36,0.000197,2]
[358817787,1745464238454,-450.18,0.000197,2]
[358817788,1745464238463,-1764.0,0.000197,2]
[358817789,1745464238473,-450.18,0.000197,2]
[358817790,1745464238484,-150.0,0.00019743,2]
[358817791,1745464238499,-150.0,0.00019776,2]
[358817792,1745464238509,-150.0,0.00019777,2]
[358817793,1745464238519,-867.05,0.00019778,2]
[358817794,1745464238528,-351.08,0.00019778,2]
[358817795,1745464238539,-150.0,0.00019795,2]
[358817796,1745464238549,-188.8901399,0.00019799,2]
[358817797,1745464238558,-450.18,0.000198,2]
[358817798,1745464238568,-190.41123277,0.000198,2]
[358817799,1745464238578,-12228.36201338,0.00019878,2]
[358817800,1745464238587,-2728.5529,0.00019886,2]
[358817801,1745464238597,-207.4,0.00019888,2]
[358817802,1745464238607,-218.31766001,0.00019889,2]
[358817803,1745464238616,-725.629,0.00019899,2]
[358817804,1745464238626,-2060.0,0.000199,2]
[358817805,1745464238636,-153.919,0.000199,2]
[358817806,1745464238646,-1335.0,0.000199,2]
[358817807,1745464238657,-918.0,0.000199,2]
[358817809,1745464238667,-821.0,0.000199,2]
[358817811,1745464238677,-548.0,0.000199,2]
[358817813,1745464238687,-1454.343,0.000199,2]
[358817815,1745464238697,-932.101,0.000199,2]
[358817817,1745464238707,-578.0,0.000199,2]
[358817820,1745464238717,-1285.0,0.000199,2]
[358817823,1745464238727,-2146.0,0.000199,2]
[358817824,1745464238737,-3986.0,0.000199,2]
[358817826,1745464238747,-198.901,0.000199,2]
[358817828,1745464238757,-257.099,0.000199,2]
[358817830,1745464238766,-871.0,0.000199,2]
[358817832,1745464238776,-876.0,0.000199,2]
[358817834,1745464238785,-5790.0,0.000199,2]
[358817836,1745464238795,-542.69903254,0.000199,2]
[358817838,1745464238804,-1583.16219361,0.000199,2]
[358817840,1745464238814,-228.34903713,0.000199,2]
[358817842,1745464238824,-287.63787259,0.000199,2]
[358817844,1745464238833,-454.68,0.00019932,2]
[358817846,1745464238843,-467.98,0.00019932,2]
[358817848,1745464238853,-454.68,0.00019932,2]
[358817850,1745464238863,-448.5,0.00019932,2]
[358817852,1745464238872,-150.0,0.00019947,2]
[358817854,1745464238882,-300.0,0.0001995,2]
[358817856,1745464238892,-150.0,0.00019965,2]
[358817859,1745464238901,-205.21480445,0.00019973,2]
[358817861,1745464238911,-151.0,0.00019974,2]
[358817863,1745464238920,-668.65185757,0.00019974,2]
[358817865,1745464238930,-5540.1953049,0.00019986,2]
[358817867,1745464238944,-3351.5592975,0.00019986,2]
[358817869,1745464238954,-35618.6180224,0.00019986,2]
[358817871,1745464238964,-29743.4399165,0.00019986,2]
[358817873,1745464238974,-154.84,0.00019989,2]
[358817875,1745464238984,-154.84,0.0001999,2]
[358817877,1745464238993,-154.84,0.0001999,2]
[358817879,1745464239003,-154.84,0.0001999,2]
[358817881,1745464239012,-154.84,0.0001999,2]
[358817884,1745464239022,-154.84,0.0001999,2]
[358817885,1745464239031,-154.84,0.0001999,2]
[358817888,1745464239042,-700.77524018,0.0001999,2]
[358817890,1745464239053,-700.77524018,0.0001999,2]
[358817892,1745464239062,-700.77524018,0.0001999,2]
[358817894,1745464239072,-150.0,0.00019994,2]
[358817896,1745464239082,-500.0,0.00019999,2]
[358817897,1745464239091,-500.0,0.00019999,2]
[358817898,1745464239100,-500.0,0.00019999,2]
[358817899,1745464239110,-500.0,0.00019999,2]
[358817900,1745464239120,-500.0,0.00019999,2]
[358817901,1745464239129,-500.0,0.00019999,2]
[358817902,1745464239139,-500.0,0.00019999,2]
[358817903,1745464239147,-500.0,0.00019999,2]
[358817904,1745464239156,-500.0,0.00019999,2]
[358817905,1745464239164,-500.0,0.00019999,2]
[358817906,1745464239172,-500.0,0.00019999,2]
[358817907,1745464239181,-500.0,0.00019999,2]
[358817908,1745464239189,-296.75755062,0.00019999,2]
[358817909,1745464239197,-500.0,0.00019999,2]
[358817910,1745464239206,-500.0,0.00019999,2]
[358817911,1745464239214,-500.0,0.00019999,2]
[358817912,1745464239223,-500.0,0.00019999,2]
[358817913,1745464239231,-500.0,0.00019999,2]
[358817915,1745464239241,-500.0,0.00019999,2]
[358817917,1745464239250,-200.0,0.00019999,2]
[358817919,1745464239259,-300.0,0.00019999,2]
[358817921,1745464239268,-312.66067017,0.00019999,2]
[358817923,1745464239277,-300.0,0.00019999,2]
[358817925,1745464239288,-1644.09672093,0.00019999,2]
[358817927,1745464239298,-858.28563937,0.00019999,2]
[358817929,1745464239308,-55667.37004628,0.00019999,2]
[358817931,1745464239317,-500.0,0.00019999,2]
[358817933,1745464239327,-150.0,0.00019999,2]
[358817935,1745464239336,-500.0,0.00019999,2]
[358817992,1745464239878,-500.0,0.00019999,2]
[358817994,1745464239888,-500.0,0.00019999,2]
[358817996,1745464239898,-150.0,0.00019999,2]
[358817998,1745464239908,-150.0,0.00019999,2]
[358818000,1745464239917,-500.0,0.00019999,2]
[358818002,1745464239926,-150.0,0.00019999,2]
[358818004,1745464239935,-151.53725633,0.00019999,2]
[358818006,1745464239944,-1717.0,0.00019999,2]
[358818008,1745464239954,-1224.0,0.00019999,2]
[358818010,1745464239963,-940230.1274591,0.0002,2]
[358818012,1745464239972,-255.63013331,0.0002,2]
[358818014,1745464239983,-1425664.62540272,0.0002,2]
[358818065,1745464240566,-2494318.525,0.0002,2]
[358818154,1745464241718,-858.28879956,0.00019999,2]
[358818156,1745464241728,-2055351.15091533,0.0002,2]
[358818157,1745464241737,-7225.20922645,0.0002,2]
[358818158,1745464241746,-301.03699794,0.0002,2]
[358818159,1745464241755,-1481.6270868,0.0002,2]
[358818160,1745464241768,-41232.86796624,0.0002,2]
[358818161,1745464241778,-3051.07808024,0.0002,2]
[358818162,1745464241787,-1804.6,0.0002,2]